Cogmind - Beta 15 *** ADVENTURER MODE // 2025.10.02 @ 20:59:24 Player: EnemyLemon Result: Destroyed by LI-G2E(R) with Subdweller Machine Gun Performance ------------- Evolutions (0) 0 Regions Visited (2) 400 Robots Destroyed (45) 225 Value Destroyed (851) 851 Prototype IDs (0) 0 Alien Tech Used (0) 0 Bonus (0) 0 TOTAL SCORE: 1476 Bonus ------- None Cogmind --------- Core Integrity 0/250 Matter 291/300 Energy 100/100 System Corruption 0% Temperature Cool (9) Movement Treading (360) Ox2 Location -10/Subcaves Parts ------- > --- POWER (1) -------- (None) > --- PROPULSION (2) --- Spiked Treads > --- UTILITY (2) ------ High-capacity Storage Unit > --- WEAPON (2) ------- Shotgun Battle Cannon > --- INVENTORY (20) --- Ion Engine Light Treads Light Treads Wheel Wheel Heat Sink Small Storage Unit Large Storage Unit High-capacity Matter Pod (200) Machine Analyzer Sensor Array Signal Interpreter Seismic Detector Targeting Computer Makeshift Hacking Suite Subdweller Laser Assault Rifle Subdweller Machine Gun Subdweller Shrapnel Launcher Multitool Peak State ------------ > --- POWER ------------ Ion Engine > --- PROPULSION ------- Wheel Subdweller Monowheel > --- UTILITY ---------- High-capacity Storage Unit Improved Terrain Scanner > --- WEAPON ----------- Subdweller Machine Gun Subdweller Shrapnel Launcher > --- INVENTORY -------- Ion Engine Light Treads Light Treads Wheel Wheel Heat Sink Small Storage Unit Large Storage Unit High-capacity Matter Pod Machine Analyzer Sensor Array Signal Interpreter Seismic Detector Targeting Computer Makeshift Hacking Suite Subdweller Laser Assault Rifle Shotgun Multitool [Rating: 14] Favorites ----------- Power Ion Engine Engine Ion Engine Propulsion Wheel Treads Spiked Treads Wheel Wheel Utility High-capacity Storage Unit Device Improved Terrain Scanner Storage High-capacity Storage Unit Weapon Shotgun Energy Gun Subdweller Laser Energy Cannon Subdweller Beam Cannon Ballistic Gun Shotgun Ballistic Cannon Battle Cannon Launcher Subdweller Shrapnel Launcher Special Weapon Mining Laser Build | -11 -10 -10 ------- Run | Yrd Mat Sub Slots Evolved . | . . . Power . | . . . Propulsion . | . . . Utility . | . . . Weapon . | . . . Parts Attached 31 | 7 10 14 Power 2 | 1 1 . Engine 2 | 1 1 . Core . | . . . Reactor . | . . . Propulsion 10 | 2 2 6 Treads 1 | . . 1 Leg . | . . . Wheel 9 | 2 2 5 Hover . | . . . Flight . | . . . Utility 6 | 2 4 . Device 3 | 1 2 . Storage 3 | 1 2 . Processor . | . . . Hackware . | . . . Protection . | . . . Artifact . | . . . Weapon 13 | 2 3 8 Energy Gun 3 | 1 1 1 Energy Cannon 1 | . . 1 Ballistic Gun 4 | 1 1 2 Ballistic Cannon 2 | . 1 1 Launcher 2 | . . 2 Special Weapon 1 | . . 1 Impact Weapon . | . . . Slashing Weapon . | . . . Piercing Weapon . | . . . Special Melee Weapon . | . . . Unidentified Prototypes . | . . . Parts Lost 7 | . 1 6 Power 1 | . . 1 Propulsion 3 | . . 3 Utility 1 | . . 1 Weapon 2 | . 1 1 Highest Loss Streak 2 | . 1 2 To Critical Strikes . | . . . Average Backups 17 | 2 12 19 Power . | . 1 1 Propulsion 3 | 1 3 3 Utility 8 | . 5 9 Weapon 3 | . 1 4 Tool/Special . | . . . Unused Backups 11 | . . 11 Power . | . . . Propulsion 3 | . . 3 Utility 6 | . . 6 Weapon . | . . . Tool/Special 2 | . . 2 Average Slot Usage (%) 96 | . 99 95 Engine 13 | . 14 13 Treads 1 | . . 2 Wheel 26 | . 28 25 Device 12 | . 14 11 Storage 14 | . 14 14 Energy Gun 4 | . 4 4 Energy Cannon 1 | . . 1 Ballistic Gun 12 | . 20 9 Ballistic Cannon 2 | . 2 3 Launcher 2 | . . 2 Special Weapon 3 | . . 4 Peak Build Rating 14 | 9 9 14 Average Rating 11 | 5 8 12 On Entrance 5 | . 9 8 Naked Turns . | . . . Heaviest Build 58 | 15 51 58 Greatest Support 40 | 26 26 40 Greatest Overweight (x) 5 | . 2 5 Average Overweight (x) 1 | . . 1 Largest Inventory Capacity 20 | 8 20 20 Average Capacity 18 | 6 14 20 Most Carried 20 | 5 16 20 Average Carried 17 | 3 12 19 Final Capacity 20 | 8 20 20 Final Carried 20 | 5 16 20 Class Distribution -------------------- 89% | Mutant 10% | Scavenger-Mutant Dominant Class ---------------- Mutant | -10/Materials Mutant | -10/Subcaves Resources | -11 -10 -10 ----------- Run | Yrd Mat Sub Matter Collected 1360 | 141 699 520 Remotely . | . . . Salvage Created 1148 | 167 687 294 Parts 92 | 11 46 35 Haulers Intercepted 2 | . 2 . Recyclers Shooed . | . . . Parts Field Recycled . | . . . Retrieved Matter . | . . . Parts Self-Destructed 20 | . . 20 Prevented . | . . . Kills | -11 -10 -10 ------- Run | Yrd Mat Sub Combat Hostiles Destroyed 31 | . 16 15 Guns 21 | . 14 7 Cannons 1 | . . 1 AOE 9 | . 2 7 Classes Destroyed 8 | 2 4 2 Tunneler 5 | 4 1 . Hauler 2 | . 2 . Recycler 2 | 1 1 . Turret 2 | . . 2 Watcher 3 | . 3 . Swarmer 17 | . 9 8 Grunt 8 | . 7 1 Subdweller 6 | . . 6 Best Kill Streak 6 | 5 4 6 Combat Bots Only 4 | . 3 4 Max Kills in Single Turn 3 | 1 2 3 Gunslinging 1 | . 1 1 Exploded 3 | . 2 3 Melee . | . . . Uniques/NPCs Destroyed . | . . . Combat | -11 -10 -10 -------- Run | Yrd Mat Sub Hostile Shots Fired 116 | . 54 62 Missed 29 | . 13 16 Hits 87 | . 41 46 Projectile 87 | . 41 46 Critical Strikes 1 | . . 1 Damage Taken 1096 | . 268 828 Core 254 | . 44 210 Absorbed by Shields . | . . . Ignored by Resistances 282 | . 93 189 Regen/Repaired (Parts) 100 | . 100 . Core Remaining (%) 100 | 100 . . Volleys Fired 125 | 8 48 69 Largest 2 | 2 2 2 Hottest 180 | 70 60 180 Shots Fired 217 | 16 95 106 Gun 136 | 16 94 26 Cannon 37 | . 1 36 Launcher 11 | . . 11 Special 33 | . . 33 Kinetic 122 | 8 73 41 Thermal 73 | 8 . 65 Explosive . | . . . Electromagnetic 22 | . 22 . Robot Hit Streak 19 | 11 19 15 Robot Miss Streak 3 | 1 2 3 Penetration Max . | . . . Secondary Targets 3 | . 1 2 Max Gunslinging Chain 1 | . 1 1 Shots Hit Robots 101 | 12 61 28 Core Hits 63 | 6 29 28 Critical Kills 1 | . . 1 Critical Parts Destroyed . | . . . Critical Strikes 1 | . . 1 Destroy 1 | . . 1 Melee Attacks . | . . . Impact . | . . . Slashing . | . . . Piercing . | . . . Sneak Attacks . | . . . Combat Hostiles . | . . . Follow-up Attacks . | . . . Damage Inflicted 2320 | 165 924 1231 Guns 1231 | 165 808 258 Cannons 132 | . . 132 Explosions 957 | . 116 841 Melee . | . . . Ramming . | . . . Kinetic 1840 | 76 577 1187 Thermal 249 | 89 116 44 Explosive . | . . . Electromagnetic 231 | . 231 . Impact . | . . . Slashing . | . . . Piercing . | . . . Highest Corruption . | . . . Average Corruption . | . . . Corruption Purged . | . . . Corruption Blocked . | . . . Overload Shots . | . . . Overflow Damage 11 | . . 11 Projectiles . | . . . Explosions 11 | . . 11 Melee . | . . . Knockbacks 2 | . . 2 Impact . | . . . Kinetic 2 | . . 2 Secondary . | . . . Self-Inflicted Damage 19 | . . 19 Shots 1 | . . 1 Rammed . | . . . Targets Rammed . | . . . Kicked . | . . . Crushed . | . . . Highest Temperature 45 | 45 . . Average Temperature 18 | 18 . . Received Heat Transfer 291 | . 90 201 Siege Activations . | . . . Martial Activations . | . . . Shielding Activations . | . . . Robots Disrupted . | . . . Combat Hostiles . | . . . Robots Corrupted . | . . . Combat Hostiles . | . . . Parts Fried . | . . . Impact Corruptions . | . . . Robots Melted . | . . . Combat Hostiles . | . . . Parts Melted . | . . . Heat Transferred 409 | 259 100 50 Parts Sabotaged . | . . . Parts Stolen . | . . . Parts Stripped . | . . . Power Chain Reactions 2 | . 2 . Alert | -11 -10 -10 ------- Run | Yrd Mat Sub Maximum Alert Level 1 | . 1 . Low Security (%) 78 | 100 76 . Level 1 21 | . 23 . Level 2 . | . . . Level 3 . | . . . Level 4 . | . . . Level 5 . | . . . High Security . | . . . Max Security . | . . . Peak Influence 260 | 20 260 . Initial 5 | . 5 . Average 113 | 3 122 . Influence Increases 822 | 25 567 230 Destroy 0b10 Robot/C 540 | . 320 220 Destroy 0b10 Robot/NC 60 | 25 35 . Destroy Leader 80 | . 70 10 Successful Hack 20 | . 20 . Select Force Hacks 30 | . 30 . Disable Machine 9 | . 9 . Destroy Structure 8 | . 8 . Lose Combat Pursuer 75 | . 75 . Influence Decreases 822 | 15 421 386 Entered New Map 92 | . 5 87 Time Decay 720 | 15 406 299 Lost Part 10 | . 10 . Squads Dispatched 3 | . 3 . Investigation 3 | . 3 . Extermination . | . . . Reinforcement . | . . . Assault . | . . . Garrison . | . . . Intercept . | . . . Searches Triggered . | . . . Construction Impeded . | . . . Haulers Reinforced . | . . . Active Scanning Responses . | . . . Cargo Convoy Interrupts . | . . . Stealth | -11 -10 -10 --------- Run | Yrd Mat Sub Distress Signals . | . . . Communications Jammed . | . . . Distress Signals . | . . . Times Spotted 44 | . 24 20 Peak Tracking Total 6 | . 3 6 Tactical Retreats 4 | . 4 . Traps | -11 -10 -10 ------- Run | Yrd Mat Sub Traps Triggered 7 | . 2 5 Indirectly . | . . . Trap Hack Attempts . | . . . Triggered . | . . . Disarmed . | . . . Reprogrammed 4 | . 4 . Reused . | . . . Traps Extracted . | . . . Installed . | . . . Triggered . | . . . Machines | -11 -10 -10 ---------- Run | Yrd Mat Sub Machines Disabled 5 | . 1 4 Max in Single Turn 3 | . 1 3 Machines Repaired . | . . . Machines Dismantled . | . . . Machines Sabotaged . | . . . Overloaded Fab Kills . | . . . Hacking | -11 -10 -10 --------- Run | Yrd Mat Sub Machines Accessed 8 | . 8 . Terminals 6 | . 6 . Fabricators . | . . . Repair Stations 1 | . 1 . Recycling Units 1 | . 1 . Scanalyzers . | . . . Garrison Access . | . . . Total Hacks 23 | . 23 . Successful 14 | . 14 . Failed 9 | . 9 . Catastrophic 1 | . 1 . Database Lockouts . | . . . Manual 14 | . 14 . Terminals 16 | . 16 . Fabricators . | . . . Repair Stations 6 | . 6 . Recycling Units 1 | . 1 . Scanalyzers . | . . . Garrison Access . | . . . Terminal Hacks 3 | . 3 . Machine Index 1 | . 1 . Reprogram Traps 1 | . 1 . Zone Layout 1 | . 1 . Fabricator Hacks . | . . . Repair Station Hacks 6 | . 6 . Scan Component 3 | . 3 . Repair 3 | . 3 . Recycling Unit Hacks . | . . . Scanalyzer . | . . . Garrison Access Hacks . | . . . Unauthorized Hacks 5 | . 5 . Terminals 4 | . 4 . Botnet 3 | . 3 . Skim 1 | . 1 . Fabricators . | . . . Repair Stations . | . . . Recycling Units 1 | . 1 . Tunnel 1 | . 1 . Scanalyzers . | . . . Garrison Access . | . . . Data Cores Recovered . | . . . Used . | . . . Hacking Detections 5 | . 5 . Full Trace Events . | . . . Feedback Events . | . . . Feedback Blocked . | . . . Robot Schematics Acquired . | . . . Robots Built . | . . . Authchips . | . . . Time . | . . . Total Robot Build Rating . | . . . Part Schematics Acquired . | . . . Parts Built . | . . . Authchips . | . . . Time . | . . . Total Part Build Rating . | . . . Parts Repaired 3 | . 3 . Time 78 | . 78 . Parts Recycled . | . . . Recycled Matter . | . . . Retrieved Matter . | . . . Retrieved Components . | . . . Parts Scanalyzed . | . . . Part Schematics Acquired . | . . . Parts Damaged . | . . . Bothacking | -11 -10 -10 ------------ Run | Yrd Mat Sub Used RIF Installer . | . . . Robots Hacked . | . . . Non-combat . | . . . Combat . | . . . Robot Hacks Applied . | . . . Relay Couplers Released . | . . . Fabnet Peak Effective % . | . . . Robots Rewired . | . . . Allies Hacked . | . . . Hacks Repelled . | . . . Allies | -11 -10 -10 -------- Run | Yrd Mat Sub Total Allies . | . . . Largest Group . | . . . Highest-Rated Group . | . . . Highest-Rated Ally . | . . . Total Orders . | . . . Ally Attacks . | . . . Total Damage . | . . . Kills . | . . . Allies Corrupted . | . . . Allies Melted . | . . . Intel | -11 -10 -10 ------- Run | Yrd Mat Sub Active Infowar (turns) 3489 | 21 286 3182 Terrain 2193 | 21 48 2124 Seismic 1296 | . 238 1058 Robot Analysis Total . | . . . Derelict Logs Recovered 3 | . . 3 Drone Launches . | . . . Drone Recoveries . | . . . Exploration | -11 -10 -10 ------------- Run | Yrd Mat Sub Turns Passed 4818 | 86 984 3748 Spaces Moved 2771 | 53 667 2051 Core 3 | 3 . . Treads 153 | . . 153 Legs . | . . . Wheels 2615 | 50 667 1898 Hover . | . . . Flight . | . . . Fastest Speed 50 | 50 90 107 Average Speed 121 | 87 96 130 Slowest Speed 360 | 100 110 360 Overloaded Moves . | . . . Propulsion Burnouts . | . . . Robots Hopped . | . . . Potential Cave-ins . | . . . Cave-ins Triggered . | . . . Exploration Rate (%) 64 | 4 97 92 Regions Visited 2 Branch Regions 1 Pre-discovered Areas 2 | . 1 1 Known Exits Taken . | . . . Unknown Exits Taken 2 | 1 1 . Scrap Searched 10 | . . 10 Spaces Dug 18 | . . 18 Terrain Destroyed 132 | . 7 125 Melee . | . . . Projectile 20 | . . 20 AOE 112 | . 7 105 Terrain Rammed . | . . . Walls Destroyed . | . . . Machines Disabled . | . . . Actions | -11 -10 -10 --------- Run | Yrd Mat Sub Total 3922 | 72 906 2944 Wait 949 | . 161 788 Move 2769 | 52 666 2051 Hop . | . . . Pick Up 26 | 5 13 8 Fast Attach 12 | 7 2 3 Attach 3 | . 1 2 Detach . | . . . Swap 26 | . 11 15 Drop 12 | . 4 8 Fire 125 | 8 48 69 Melee . | . . . Ram . | . . . Kick . | . . . Crush . | . . . Escape Stasis . | . . . Rewire . | . . . Trap . | . . . Miscellaneous . | . . . Route ------- -11/Scrapyard -10/Materials (discovered 5 exits: [*Mat x2] / [*Min x2] / [*Sub]) -10/Subcaves (discovered 3 exits: [*Mat x2] / [*Rec]) History --------- Turn | Location | Event 13 | -11/Scrapyard | Discovered new exit (range 14) 87 | -11/Scrapyard | Entered Materials 310 | -10/Materials | Build established: Mutant 397 | -10/Materials | Discovered new exit (range 12) 524 | -10/Materials | Discovered new exit (range 6) 587 | -10/Materials | Discovered new exit (range 10) 875 | -10/Materials | Discovered new exit (range 15) 991 | -10/Materials | Repaired Assault Rifle 1019 | -10/Materials | Repaired Seismic Detector 1046 | -10/Materials | Repaired Assault Rifle 1060 | -10/Materials | Discovered new exit (range 11) 1071 | -10/Materials | Entered Subcaves 1072 | -10/Subcaves | Approached by a straggling Scientist 1118 | -10/Subcaves | A swath of the cavern ceiling suddenly collapsed 1369 | -10/Subcaves | Discovered new exit (range 9) 1637 | -10/Subcaves | Build established: Scavenger-Mutant 1875 | -10/Subcaves | A swath of the cavern ceiling suddenly collapsed 2169 | -10/Subcaves | Build established: Mutant 3538 | -10/Subcaves | Discovered new exit (range 16) 3846 | -10/Subcaves | Core integrity fell below 50% 3865 | -10/Subcaves | Learned 8 Materials zone layouts 3891 | -10/Subcaves | Learned location of Recycling (-8) 4225 | -10/Subcaves | Learned 4 Materials zone layouts 4247 | -10/Subcaves | Disturbed a concealed Subdweller 4753 | -10/Subcaves | Discovered new exit (range 13) 4801 | -10/Subcaves | A Subdweller sparked back to life 4801 | -10/Subcaves | A Subdweller sparked back to life 4801 | -10/Subcaves | A Subdweller sparked back to life 4814 | -10/Subcaves | Core integrity fell below 20% 4819 | -10/Subcaves | Destroyed by LI-G2E(R) with Subdweller Machine Gun Last Messages --------------- 04262_ Acquired 35 matter. 04263_ Searching scrap... 04263_ Found Spk. Treads. 04263_ Found Battle Rifle. 04263_ Found 47 Matter. 04264_ Acquired 47 matter. 04266_ Acquired Spk. Treads. 04298_ Subatomizers dissect the Enh. Flamer. 04753_ EXIT=FOUND 04755_ Subatomizers dissect the Disposable Heat Sink. 04800_ Acquired 17 matter. 04801_ LI-G2E(R) creaks and sparks as it begins to move. 04801_ 7R-HS1(R) creaks and sparks as it begins to move. 04801_ WL-MIG(R) creaks and sparks as it begins to move. 04809_ Ion Engine destroyed. 04817_ Sub. Monowheel destroyed. Map ----- +----------------------------------------------------+ | ?????## #???# ##??????# | | ??????## #???# ###?#?## | | ???????# ## ##??## ## ### | | ???????## ### ###### | | ????????## ####?## ### ## | | ???###???# #????# ## ## | | ??## #??## #????# ### ## #### | | ??# #??# #???# #??###### #??## | | ?## ##### #??# #????????# ### #?## | | ## ### #?# #??#??????## ###??# #?# | | ## ##?# ???????????## #??#??##?# | | ##?? ?#??#????????## ##????????### | | ##??# ?? ## ##??????#####???????????## | | #??????? ????????????????#?????# | | #####?? ???????#####????#????## | | #???# ??????# #?????????## | | ### #??## ?????? ?????????## | | ##?? #?## # ###"## ??????????# | | ###???# ##?# # =%! #??????????# | | ##??????###?## ??# " #???????????## | | ###?????????? ??# #????????????# | | ###????????? #??? % < #????????###?# | | % #??????????# ##???# <*& ?????????# ## | | % # # ##?????##### ##?##RR%## ???????# | | ### #????## ## ### R&&## ##### # | | ## ##??### @ < ## # | | ##### ##### #### | | ##???####?# | | ######?????????# ## ### # | | ## #####????????????????#####??###??##### | | #############???????????????????????????????????#? | | ?????????????????????????????????????????????????? | | ?????????????????????????????????????????????????? | | ????????????????????????????????????????????????#? | | ?????????????????????????????????????????????????? | | ?????????????????????????????????????????????????? | | ?????????????????????????????????????????????????? | | ?????????????????????????????????????????????????? | | ?????????????????????????????????????????????????? | | ?????????????????????????????????????????????????? | | ?????????????????????????????????????????????????? | | ?????????????????????????????????????????????????? | | ?????????????????????????????????????????????????? | | ?????????????????????????????????????????????????? | | ?????????????????????????????????????????????????? | | | | | | | | | | | +----------------------------------------------------+ Best States ------------- Heat Dissipation 35 Energy Generation 10 Energy Capacity 250 Matter Stores 300 Matter Capacity 300 Sight Range 16 Terrain Scan Range 16 Terrain Scan Density 10 Resistance: KI 20 Resistance: TH 20 Resistance: EX 20 Resistance: EM 20 Resistance: I 20 Resistance: S 20 Resistance: P 20 Evasion (%) 42 Recoil Reduction 1 Offensive Hacking 10 Item Schematics ----------------- None Robot Schematics ------------------ None Fabricated ------------ Nothing Repaired ---------- Assault Rifle | 46% | -10/Materials Seismic Detector | 40% | -10/Materials Assault Rifle | 66% | -10/Materials Alien Tech Used ----------------- None Achievements -------------- None Challenges ------------ None Game ------ Seed GrapheneCommHumpback Manual? 0 Play Time 00:52:39 Cumulative 96.0 hours Start 2025.10.02 @ 20:00:23 End 2025.10.02 @ 20:59:24 Sessions 1 Manual Loads 0 Difficulty Adventurer Special Mode None Game No. 29 Rogue 0 Adventurer 29 Explorer 0 Win Type - Total 0 Types 0/0/0/0/0/0/0/0/0/0 Lore% 25 Gallery% 35 Achievement% 35 Wizard Run 0 Options --------- Layout 1 ASCII 0 Keyboard 0 Movement Mouse Keybinds 0 Fullscreen 1 Font 16/X11CapsBold Map View 50x40 Zoom Use 0% Tactical HUD 1 Map Filters NONE Filters NONE Steam SD RUN: 8b7c4e39-0d3f-4fcd-b59f-152fdb406e7d